{"text_format":"1","workbook":"xlsx","n_sheets":10,"sheets":["ATEX","Sheet1","Sheet2","Sheet3","Sheet4","duty","Sheet5","_SSC","Sheet7","Instructions"],"not_rendered":{"charts":0,"images":9,"macros":1,"external_links":0,"defined_names":78,"comments":0,"pivot_tables":0},"unopened":[],"bounds":{"document_bytes":16777216,"sheet_cells":100000,"rows_first":2000,"rows_last":500,"rows_between":2000,"halvings":0,"cell_chars":16384,"cell_head_chars":4096},"cells_cut":0,"cells_raw":0,"read":"whole","date_system":"1900"}

{"sheet":"ATEX","index":0,"n_rows":673,"n_cols":27,"rows_kept":673,"cut":false,"hidden":false,"merged":[[154,3,154,7],[120,2,120,15],[158,3,158,7],[160,3,160,7],[132,2,132,15],[133,2,133,15],[129,2,129,15],[130,2,130,15],[131,2,131,15],[156,3,156,7],[137,2,137,3],[138,2,138,3],[139,2,139,3],[140,2,140,3],[121,2,121,15],[146,5,146,15],[147,2,147,3],[148,2,148,3],[148,5,148,15],[149,2,149,3],[149,4,149,5],[149,6,149,7],[134,2,134,3],[135,2,135,3],[182,3,182,7],[185,3,185,7],[187,3,187,7],[190,3,190,7],[192,3,192,7],[175,3,175,7],[162,3,162,7],[164,3,164,7],[166,3,166,7],[168,3,168,7],[170,3,170,7],[172,3,172,7],[180,3,180,7],[10,17,11,20],[10,7,10,15],[10,2,10,6],[24,2,24,6],[22,2,22,6],[20,2,20,6],[18,2,18,6],[16,2,16,6],[12,2,12,6],[18,7,18,15],[16,7,16,15],[12,7,12,15],[24,7,24,15],[22,7,22,15],[16,17,16,20],[12,17,12,20],[20,17,20,20],[18,17,18,20],[8,1,8,16],[30,1,30,16],[46,1,46,16],[14,2,14,6],[14,7,14,15],[28,2,28,6],[32,2,32,6],[32,7,32,15],[20,7,20,15],[26,2,26,6],[36,7,36,15],[34,7,34,15],[44,2,44,6],[44,7,44,15],[26,7,26,15],[28,7,28,15],[42,2,42,6],[40,2,40,6],[38,2,38,6],[36,2,36,6],[34,2,34,6],[42,7,42,15],[40,7,40,15],[38,7,38,15],[48,2,48,4],[62,2,62,6],[62,7,62,8],[48,11,48,14],[50,7,50,8],[50,2,50,5],[52,2,52,4],[48,7,48,8],[66,2,66,6],[64,2,64,4],[52,7,52,8],[54,7,54,8],[54,2,54,4],[56,2,56,6],[56,7,56,8],[66,11,66,15],[66,7,66,8],[58,2,58,5],[60,2,60,5],[60,7,60,8],[58,7,58,8],[64,7,64,8],[68,2,68,6],[68,7,68,8],[70,7,70,8],[72,2,72,6],[104,2,104,4],[104,7,104,8],[108,7,108,15],[108,2,108,5],[117,2,117,15],[96,7,96,8],[98,7,98,8],[86,2,86,6],[84,2,84,6],[94,7,94,10],[92,11,92,15],[74,11,74,15],[76,7,76,8],[74,7,74,8],[80,7,80,8],[90,7,90,8],[88,7,88,8],[90,11,90,15],[80,2,80,6],[90,2,90,6],[151,2,151,3],[151,4,151,5],[149,8,149,9],[149,10,149,11],[145,2,145,3],[146,2,146,3],[135,5,135,15],[134,5,134,15],[136,5,136,15],[138,5,138,15],[139,5,139,15],[145,5,145,15],[142,4,142,5],[142,8,142,9],[143,4,143,5],[147,5,147,6],[136,2,136,3],[143,2,143,3],[144,2,144,3],[147,8,147,9],[143,8,143,9],[144,4,144,5],[144,8,144,9],[150,2,150,3],[86,11,86,15],[84,11,84,15],[88,2,88,6],[88,11,88,15],[144,11,144,12],[141,2,141,3],[142,2,142,3],[128,7,128,9],[128,10,128,12],[128,13,128,15],[118,2,118,15],[140,9,140,16],[70,11,70,15],[92,7,92,10],[70,2,70,6],[92,2,92,6],[100,7,100,8],[80,11,80,15],[76,11,76,15],[119,2,119,9],[119,10,119,15],[94,2,94,6],[100,2,100,6],[98,2,98,6],[96,2,96,6],[106,7,106,8],[110,1,110,16],[112,2,115,15],[116,2,116,15],[72,7,72,8],[78,2,78,6],[78,7,78,8],[74,2,74,6],[86,7,86,8],[84,7,84,8],[76,2,76,6]]}
[]
[]
[]
[]
[]
[]
[]
[]
[null,"Customer Information"]
[null,null," "]
[null,null,"Company"]
[]
[null,null,"Contact Name"]
[null,null,null,null,null,null,null,null,"adsf"]
[null,null,"Address"]
[]
[null,null,"Phone"]
[]
[null,null,"Email"]
[]
[null,null,"Project Name"]
[]
[null,null,"Quantity"]
[]
[null,null,"Model Type (with options)"]
[]
[null,null,"Country of Installation"]
[]
[null,null,"Units of Measure"]
[]
[null,"Hazardous Environment Details"]
[]
[null,null,"Select Hazardous Material"]
[]
[null,null,"Select Zone",null,null,null,null,null,null,null,null,null,null,null,null,null,null,null,null,null,null,null,null,null,null,"Ex nA Non-Sparking","T3 Zone2 - with TF Inverter operation"]
[null,null,null,null,null,null,null,null,null,null,null,null,null,null,null,null,null,null,null,null,null,null,null,null,null,"Ex e Increased Safety","T3 Zone 1 & Zone 2 - No VFD"]
[null,null,"Select Dust Type",null,null,null,null,null,null,null,null,null,null,null,null,null,null,null,null,null,null,null,null,null,null,"Ex de Flameproof","T4 Zone 1 & Zone 2 - with TF Inverter Operation"]
[null,null,null,null,null,null,null,null,null,null,null,null,null,null,null,null,null,null,null,null,null,null,null,null,null,"Ex tb Dust Explosion Protection","Zone 21 Category 2D - with TF Inverter operation"]
[null,null,"Select Temperature Class",null,null,null,null,null,null,null,null,null,null,null,null,null,null,null,null,null,null,null,null,null,null,"Ex tc Dust Explosion Protection","Zone 22 Category 3D - with TF Inverter operation"]
[]
[null,null,"Inverter Operation"]
[null,null,null,null,null,null,null,null,null,null,null,null,null,null,null,null,null,null,null,null,null,null,null,null,null,"http://www.contextures.com/xlDataVal02.html#video"]
[null,null,"Select Motor Construction"]
[]
[null,null,"Input Design"]
[]
[null,"Gear Unit Details",null,null,null,null,null,null,null,null,null,null,null,null,null,null,null,null,null,null,"Metric Conversion"]
[]
[null,null,"Frequency",null,null,null,null,null,null,"Hz",null,"Gearbox Options",null,null,null,null,null,null,null,"Freq",{"$f":"H49","v":0},"Hz"]
[]
[null,null,"Input Power P1",null,null,null,null,null,null,{"$f":"IF($H$29=\"\",\"\",IF($H$29=\"metric\",V51,X51))","v":""},null,null,null,null,null,null,null,null,null,"P1",{"$f":"IF(H29=\"Imperial\", H51*0.746,H51)","v":0},"kW",null,"hp","1/min","rpm"]
[]
[null,null,"Input Speed N1",null,null,null,null,null,null,{"$f":"IF($H$29=\"\",\"\",IF($H$29=\"metric\",Y51,Z51))","v":""},null,null,null,null,null,null,null,null,null,"N1",{"$f":"H53","v":0},"1/min",null,"rpm","Nm","lb-in"]
[]
[null,null,"Ratio",null,null,null,null,null,null,":1",null,null,null,null,null,null,null,null,null,"Ratio",{"$f":"H55","v":0},null,null,null,"°C min","°F min"]
[]
[null,null,"Service Factor Minimum",null,null,null,null,null,null,null,null,null,null,null,null,null,null,null,null,"SF",{"$f":"H57","v":0},null,null,null,"°C max","°F max"]
[]
[null,null,"Output Speed N2",null,null,null,null,null,null,{"$f":"IF($H$29=\"\",\"\",IF($H$29=\"metric\",Y51,Z51))","v":""},null,null,null,null,null,null,null,null,null,"N2",{"$f":"H59","v":0},"1/min",null,"rpm","kN","lb"]
[null,null,null,null,null,null,null,null,null,{"$f":"IF($H$29=\"\",\"\",IF($H$29=\"metric\",Y52,Z52))","v":""},null,null,null,null,null,null,null,null,null,null,null,0]
[null,null,"Output Torque M2",null,null,null,null,null,null,{"$f":"IF($H$29=\"\",\"\",IF($H$29=\"metric\",Y53,Z53))","v":""},null,null,null,null,null,null,null,null,null,"M2",{"$f":"IF(H29=\"Imperial\",H61/8.85,H61)","v":0},"Nm",null,"lb-in","mm","in"]
[null,null,null,null,null,null,null,null,null,{"$f":"IF($H$29=\"\",\"\",IF($H$29=\"metric\",Y54,Z54))","v":""},null,null,null,null,null,null,null,null,null,null,"kN",0]
[null,null,"Output Shaft Size",null,null,null,null,null,null,{"$f":"IF($H$29=\"\",\"\",IF(H29=\"imperial\",Z61,Y61))","v":""},null,null,null,null,null,null,null,null,null,"Shaft Size",{"$f":"IF(H29=\"imperial\",H63*25.4,H63)","v":0},"mm"]
[]
[null,null,"Mounting Position",null,null,null,null,null,null,null,null,null,null,null,null,null,null,null,null,"Mtg. Pos.",{"$f":"H65","v":0}]
[null,null,null,null,null,null,null,null,null,null,null,null,null,null,null,null,null,null,null,null,"kN"]
[null,null,"Ambient Temperature - Min",null,null,null,null,null,null,"°C min",null,null,null,null,null,null,null,null,null,"Temp. Min.",{"$f":"H67","v":0},"°C min"]
[null,null,null,null,null,null,null,null,null,null,null,null,null,null,null,null,null,null,null,null,"kN"]
[null,null,"Ambient Temperature - Max",null,null,null,null,null,null,"°C max",null,null,null,null,null,null,null,null,null,"Temp. Max.",{"$f":"H69","v":0},"°C max"]
[null,null,null,null,null,null,null,null,null,{"$f":"IF($H$29=\"\",\"\",IF($H$29=\"metric\",Y56,Z56))","v":""},null,null,null,null,null,null,null,null,null,null,"kW",0]
[null,null,"Output Radial Load (FQ/OHL)",null,null,null,null,null,null,{"$f":"IF($H$29=\"\",\"\",IF($H$29=\"metric\",Y59,Z59))","v":""},null,null,null,null,null,null,null,null,null,"FQ/OHL",{"$f":"IF(H29=\"imperial\",H71/224.80894,H71)","v":0},"kN",null,"lb"]
[null,null,null,null,null,null,null,null,null,{"$f":"IF($H$29=\"\",\"\",IF($H$29=\"metric\",U60,V60))","v":""},null,null,null,null,null,null,null,null,null,null,"1/min",0]
[null,null,"Distance/Lever (X)",null,null,null,null,null,null,{"$f":"IF($H$29=\"\",\"\",IF(H29=\"imperial\",Z61,Y61))","v":""},null,null,null,null,null,null,null,null,null,"x",{"$f":"IF(H29=\"imperial\",H73*25.4,H73)","v":0},"mm"]
[null,null,null,null,null,null,null,null,null,null,null,null,null,null,null,null,null,null,null,null,"mm"]
[null,null,"Output Axial Load (FA)",null,null,null,null,null,null,{"$f":"IF($H$29=\"\",\"\",IF($H$29=\"metric\",Y59,Z59))","v":""},null,null,null,null,null,null,null,null,null,"FA",{"$f":"IF(H29=\"imperial\",H75/224.80894,H75)","v":0},"kN",null,"lb"]
[null,null,null,null,null,null,null,null,null,{"$f":"IF($H$29=\"\",\"\",IF($H$29=\"metric\",U63,V63))","v":""},null,null,null,null,null,null,null,null,null,null,null,0]
[null,null,"Input Shaft Radial Load (FQ/OHL)",null,null,null,null,null,null,{"$f":"IF($H$29=\"\",\"\",IF($H$29=\"metric\",Y59,Z59))","v":""},null,null,null,null,null,null,null,null,null,"FQ/OHL",{"$f":"IF(H29=\"imperial\",H77/224.80894,H77)","v":0},"kN",null,"lb"]
[]
[null,null,"Distance/Lever (X)",null,null,null,null,null,null,{"$f":"IF($H$29=\"\",\"\",IF(H29=\"imperial\",Z61,Y61))","v":""},null,null,null,null,null,null,null,null,null,"x",{"$f":"IF(H29=\"imperial\",H79*25.4,H79)","v":0},"mm"]
[null,null,null,null,null,null,null,null,null,{"$f":"IF($H$29=\"\",\"\",IF($H$29=\"metric\",U67,V67))","v":""},null,null,null,null,null,null,null,null,null,null,null,0]
[null,null,"Input Shaft Axial Load (FA)",null,null,null,null,null,null,{"$f":"IF($H$29=\"\",\"\",IF($H$29=\"metric\",Y59,Z59))","v":""},null,null,null,null,null,null,null,null,null,"FA",{"$f":"IF(H29=\"imperial\",H81/224.80894,H81)","v":0},"kN",null,"lb"]
[null,null,null,null,null,null,null,null,null,{"$f":"IF($H$29=\"\",\"\",IF($H$29=\"metric\",U69,V69))","v":""}]
[null,"Motor Details",null,null,null,{"$f":"IF(H45=\"IEC Motor Adapter\", \"X\",IF(H45=\"NEMA Motor Adapter\",\"X\",IF(H45=\"Solid Input Shaft\",\"X\",IF(H45=\"Servo Motor Adapter\",\"X\",\"\"))))","v":""},"  Not Applicable"]
[]
[null,null,"Input Power P1",null,null,null,null,null,null,{"$f":"IF($H$29=\"\",\"\",IF($H$29=\"metric\",V51,X51))","v":""},null,"      Motor Options",null,null,null,null,null,null,null,null,{"$f":"IF(H29=\"Imperial\", H85*0.746,H85)","v":0},"kW",null,"hp"]
[null,null,null,null,null,null,null,null,null,{"$f":"IF($H$29=\"\",\"\",IF($H$29=\"metric\",U71,V71))","v":""}]
[null,null,"Input Speed N1",null,null,null,null,null,null,{"$f":"IF($H$29=\"\",\"\",IF($H$29=\"metric\",Y51,Z51))","v":""},null,null,null,null,null,null,null,null,null,null,{"$f":"H87","v":0},"1/min",null,"rpm"]
[]
[null,null,"Motor Poles"]
[]
[null,null,"Motor Voltage",null,null,null,null,null,null,"Volts"]
[]
[null,null,"Motor Efficiency"]
[]
[null,null,"Brake"]
[]
[null,null,"Brake Torque",null,null,null,null,null,null,"Nm"]
[]
[null,null,"AC Brake Supply Voltage",null,null,null,null,null,null,"VAC"]
[]
[null,null,"DC Brake Coil Voltage",null,null,null,null,null,null,"VDC"]
[]
[null,"AC Vector Drive/Inverter Details",null,null,null,null,null,null,null,{"$f":"IF(H41=\"No Inverter - Direct over the Line Operation\",\"X\",\"\")","v":""},"  Not Applicable"]
[]
[null,null,"Frequency Range",null,null,null,null,null,null,"Hz min"]
[null,null,null,null,null,null,null,"."]
[null,null,null,null,null,null,null,null,null,"Hz max"]
[]
[]
[]
[null,"Notes & Documentation"]
[]
[]
[]
[]
[]
[null,null,{"$f":"IF(H65=\"M4\",\"(RD) Canopy Drip Cover Required on Motor\",\"\")","v":""}]
[null,null,{"$f":"IF(H43=\"Ex tb Dust Explosion Protection – Suitable for Zone 21 & Zone 22, IP6x\", \"IP66 Motor Enclosure Required\",\"\")","v":""}]
[null,null,{"$f":"IF(H41=\"Inverter Operation Required\",\"(TF) Thermistor Required\",\"\")","v":""}]
[null,null,{"$f":"IF(H45=\"IEC Motor Adapter\",\"*Please provide customer supplied motor weight\",IF(H45=\"NEMA Motor Adapter\",\"*Please provide customer supplied motor weight\",IF(H45=\"Servo Motor Adapter\",\"*Please provide customer supplied motor weight\",\"\")))","v":""}]
[]
[null,null,"Operation and Maintenance Manuals Language(s)"]
[]
[]
[]
[]
[]
[]
[null,null,"QSL-180, rev. 08/08/2017",null,null,null,null,"Inquiry Last Saved:",null,null,{"$f":"LastSaved()","v":"2018-08-10T13:46:36"},null,null,{"$f":"LastAuthor()","v":"Brabender, Corey"}]
[]
[]
[]
[null,null,"Engineering Data Summary:",null,null,null,null,null,null,null,null,null,null,null,null,null,null,null,null,null,null,null,null,null,null,"hazardlist","hazardlookup"]
[]
[null,null,"Model:",null,null,{"$f":"H25","v":0},null,null,null,null,null,null,null,null,null,null,null,null,null,null,null,null,null,null,null,"Gas","gas"]
[null,null,"Ratio:",null,null,{"$f":"H55","v":0},null,null,null,null,null,null,null,null,null,null,null,null,null,null,null,null,null,null,null,"Dust","dust"]
[null,null,"Input:",null,null,{"$f":"H45","v":0},null,null,null,null,null,null,null,null,null,null,null,null,null,null,null,null,null,null,null,"Gas & Dust","gasanddust"]
[null,null,"Power:",null,{"$f":"H51","v":0},{"$f":"J51","v":""},"@",{"$f":"H53","v":0},{"$f":"J53","v":""}]
[null,null,"Material:",null,null,{"$f":"H33","v":0},null,null,null,null,null,null,null,null,null,null,null,null,null,null,null,null,null,null,null,"Dustlist","dustlookup"]
[null,null,"Zone:",null,null,{"$f":"H35","v":0}]
[null,null,"Temp:",null,{"$f":"H67","v":0},{"$f":"J67","v":"°C min"},null,{"$f":"H69","v":0},{"$f":"J69","v":"°C max"},{"$f":"H39","v":0},null,null,null,null,null,null,null,null,null,null,null,null,null,null,null,"Zone 22 (II3D) - Rare occurance in normal operation and short period of time","Zone22"]
[null,null,"Elevation:",null,"?",null,null,null,null,null,null,null,null,null,null,null,null,null,null,null,null,null,null,null,null,"Zone 21 (II2D) - Occasional occurrence in normal operation","Zone21"]
[null,null,"Radial Load:",null,{"$f":"H71","v":0},null,{"$f":"J71","v":""},"@",{"$f":"H73","v":0},null,{"$f":"J73","v":""}]
[null,null,"Axial Load:",null,{"$f":"H75","v":0},null,{"$f":"J75","v":""},null,null,null,null,null,null,null,null,null,null,null,null,null,null,null,null,null,null,"gaslist","gaslookup"]
[null,null,"Input Loads:",null,{"$f":"H77","v":0},null,{"$f":"J77","v":""},"@",{"$f":"H79","v":0},null,{"$f":"J79","v":""},"Thrust:",null,{"$f":"H81","v":0},{"$f":"J81","v":""}]
[null,null,"Mounting:",null,null,{"$f":"H65","v":0},null,null,null,null,null,null,null,null,null,null,null,null,null,null,null,null,null,null,null,"Zone 2 (II3G) - Rare occurance in normal operation and short period of time","Zone2"]
[null,null,"Shaft:",null,{"$f":"J63","v":""},{"$f":"H63","v":0},null,null,null,null,null,null,null,null,null,null,null,null,null,null,null,null,null,null,null,"Zone 1 (II2G) - Occasional occurrence in normal operation","Zone1"]
[null,null,"Oil:",null,"Syn:",{"$f":"$Z$597","v":0},null,"FG:",{"$f":"Z598","v":0}]
[null,null,"Brake:",null,null,{"$f":"H95","v":0},null,null,null,null,null,null,null,null,null,null,null,null,null,null,null,null,null,null,null,"gasanddustlist","gasanddustlookup"]
[null,null,"VFD range:",null,{"$f":"H105","v":0},null,{"$f":"J105","v":"Hz min"},null,{"$f":"H107","v":0},null,{"$f":"J107","v":"Hz max"}]
[null,null,"Motor Options:",null,"TF:",{"$f":"Z602","v":0},"IP66:",{"$f":"Z603","v":0},"RD:",{"$f":"Z604","v":0},"F:",{"$f":"Z628","v":0},"SH:",{"$f":"Z605","v":0},null,null,null,null,null,null,null,null,null,null,null,"Zone 2 & Zone 22 (II3G & II3D) - Rare occurance in normal operation and short period of time","Zone22"]
[null,null,"Gear Backstop:",null,{"$f":"Z600","v":0},null,null,null,null,null,null,null,null,null,null,null,null,null,null,null,null,null,null,null,null,"Zone 1 & Zone 21 (II2G & II2D) - Occasional occurrence in normal operation","Zone21"]
[null,null,null,null,null,null,null,null,null,null,null,null,null,null,null,null,null,null,null,null,null,null,null,null,null,"Zone 2 & Zone 21 (II3G & II2D) - Rare Gas Explosion Risk or Occasional Dust Explosion Risk"]
[null,null,null,null,null,null,null,null,null,null,null,null,null,null,null,null,null,null,null,null,null,null,null,null,null,"Zone 1 & Zone 22 (II2G & II3D) - Occasional Gas Explosion Risk or Rare Dust Explosion Risk"]
[]
[null,null,null,null,null,null,null,null,null,null,null,null,null,null,null,null,null,null,null,null,null,null,null,null,null,"conductivelist","conductivelookup"]
[]
[null,null,null,null,null,null,null,null,null,null,null,null,null,null,null,null,null,null,null,null,null,null,null,null,null,"Non-Conductive Dust (Natural & Chemical Dusts)","noncond"]
[null,null,null,null,null,null,null,null,null,null,null,null,null,null,null,null,null,null,null,null,null,null,null,null,null,"Conductive Dust (Metal Dusts)","cond"]
[]
[null,null,null,null,null,null,null,null,null,null,null,null,null,null,null,null,null,null,null,null,null,null,null,null,null,"gascondlist"]
[]
[null,null,null,null,null,null,null,null,null,null,null,null,null,null,null,null,null,null,null,null,null,null,null,null,null,"Not Applicable"]
[]
[null,null,null,null,null,null,null,null,null,null,null,null,null,null,null,null,null,null,null,null,null,null,null,null,null,"gastemp","gastemplookup"]
[]
[null,null,null,null,null,null,null,null,null,null,null,null,null,null,null,null,null,null,null,null,null,null,null,null,null,"T1 , 450°C (842°F) Maximum Allowed Surface Temperature","t3gas"]
[null,null,null,null,null,null,null,null,null,null,null,null,null,null,null,null,null,null,null,null,null,null,null,null,null,"T2 , 300°C (572°F) Maximum Allowed Surface Temperature","t3gas"]
[null,null,null,null,null,null,null,null,null,null,null,null,null,null,null,null,null,null,null,null,null,null,null,null,null,"T3 , 200°C (392°F) Maximum Allowed Surface Temperature","t3gas"]
[null,null,null,null,null,null,null,null,null,null,null,null,null,null,null,null,null,null,null,null,null,null,null,null,null,"T4 , 135°C (275°F) Maximum Allowed Surface Temperature","t4gas"]
[]
[null,null,null,null,null,null,null,null,null,null,null,null,null,null,null,null,null,null,null,null,null,null,null,null,null,"surfacetemp","surfacetemplookup"]
[]
[null,null,null,null,null,null,null,null,null,null,null,null,null,null,null,null,null,null,null,null,null,null,null,null,null,"125°C (257°F) Maximum Allowed Surface Temperature","t3dust"]
[]
[null,null,null,null,null,null,null,null,null,null,null,null,null,null,null,null,null,null,null,null,null,null,null,null,null,null,"zonelookup"]
[null,null,null,null,null,null,null,null,null,null,null,null,null,null,null,null,null,null,null,null,null,null,null,null,null,"Zone 22 (II3D) - Rare occurance in normal operation and short period of time","Zone22"]
[null,null,null,null,null,null,null,null,null,null,null,null,null,null,null,null,null,null,null,null,null,null,null,null,null,"Zone 21 (II2D) - Occasional occurrence in normal operation","Zone21"]
[null,null,null,null,null,null,null,null,null,null,null,null,null,null,null,null,null,null,null,null,null,null,null,null,null,"Zone 2 (II3G) - Rare occurance in normal operation and short period of time","Zone2"]
[null,null,null,null,null,null,null,null,null,null,null,null,null,null,null,null,null,null,null,null,null,null,null,null,null,"Zone 1 (II2G) - Occasional occurrence in normal operation","Zone1"]
[]
[null,null,null,null,null,null,null,null,null,null,null,null,null,null,null,null,null,null,null,null,null,null,null,null,null,"Zone21list"]
[]
[null,null,null,null,null,null,null,null,null,null,null,null,null,null,null,null,null,null,null,null,null,null,null,null,null,"Motor not provided by NORD DRIVESYSTEMS"]
[null,null,null,null,null,null,null,null,null,null,null,null,null,null,null,null,null,null,null,null,null,null,null,null,null,"Ex tb Dust Explosion Protection","Zone 21 Category 2D"]
[]
[null,null,null,null,null,null,null,null,null,null,null,null,null,null,null,null,null,null,null,null,null,null,null,null,null,"Zone22list"]
[]
[null,null,null,null,null,null,null,null,null,null,null,null,null,null,null,null,null,null,null,null,null,null,null,null,null,"Motor not provided by NORD DRIVESYSTEMS"]
[null,null,null,null,null,null,null,null,null,null,null,null,null,null,null,null,null,null,null,null,null,null,null,null,null,"Ex tc Dust Explosion Protection","Zone 22 Category 3D"]
[null,null,null,null,null,null,null,null,null,null,null,null,null,null,null,null,null,null,null,null,null,null,null,null,null,"Ex tb Dust Explosion Protection","Zone 21 Category 2D"]
[]
[null,null,null,null,null,null,null,null,null,null,null,null,null,null,null,null,null,null,null,null,null,null,null,null,null,"Zone22noncondlist"]
[]
[null,null,null,null,null,null,null,null,null,null,null,null,null,null,null,null,null,null,null,null,null,null,null,null,null,"Motor not provided by NORD DRIVESYSTEMS"]
[null,null,null,null,null,null,null,null,null,null,null,null,null,null,null,null,null,null,null,null,null,null,null,null,null,"Ex tc Dust Explosion Protection","Zone 22 Category 3D"]
[null,null,null,null,null,null,null,null,null,null,null,null,null,null,null,null,null,null,null,null,null,null,null,null,null,"Ex tb Dust Explosion Protection","Zone 21 Category 2D"]
[]
[null,null,null,null,null,null,null,null,null,null,null,null,null,null,null,null,null,null,null,null,null,null,null,null,null,"Zone22condlist"]
[]
[null,null,null,null,null,null,null,null,null,null,null,null,null,null,null,null,null,null,null,null,null,null,null,null,null,"Motor not provided by NORD DRIVESYSTEMS"]
[null,null,null,null,null,null,null,null,null,null,null,null,null,null,null,null,null,null,null,null,null,null,null,null,null,"Ex tb Dust Explosion Protection – Suitable for Zone 21 & Zone 22, IP6x"]
[]
[null,null,null,null,null,null,null,null,null,null,null,null,null,null,null,null,null,null,null,null,null,null,null,null,null,"zone21noncondlist"]
[]
[null,null,null,null,null,null,null,null,null,null,null,null,null,null,null,null,null,null,null,null,null,null,null,null,null,"Motor not provided by NORD DRIVESYSTEMS"]
[null,null,null,null,null,null,null,null,null,null,null,null,null,null,null,null,null,null,null,null,null,null,null,null,null,"Ex tb Dust Explosion Protection – Suitable for Zone 21 & Zone 22, IP6x"]
[]
[null,null,null,null,null,null,null,null,null,null,null,null,null,null,null,null,null,null,null,null,null,null,null,null,null,"zone21condlist"]
[]
[null,null,null,null,null,null,null,null,null,null,null,null,null,null,null,null,null,null,null,null,null,null,null,null,null,"Motor not provided by NORD DRIVESYSTEMS"]
[null,null,null,null,null,null,null,null,null,null,null,null,null,null,null,null,null,null,null,null,null,null,null,null,null,"Ex tb Dust Explosion Protection – Suitable for Zone 21 & Zone 22, IP6x"]
[]
[null,null,null,null,null,null,null,null,null,null,null,null,null,null,null,null,null,null,null,null,null,null,null,null,null,"zone1t3gasinvnolist"]
[]
[null,null,null,null,null,null,null,null,null,null,null,null,null,null,null,null,null,null,null,null,null,null,null,null,null,"Motor not provided by NORD DRIVESYSTEMS"]
[null,null,null,null,null,null,null,null,null,null,null,null,null,null,null,null,null,null,null,null,null,null,null,null,null,"Ex e Increased Safety"]
[null,null,null,null,null,null,null,null,null,null,null,null,null,null,null,null,null,null,null,null,null,null,null,null,null,"Ex de Flameproof"]
[]
[null,null,null,null,null,null,null,null,null,null,null,null,null,null,null,null,null,null,null,null,null,null,null,null,null,"zone1t4gasinvnolist"]
[]
[null,null,null,null,null,null,null,null,null,null,null,null,null,null,null,null,null,null,null,null,null,null,null,null,null,"Motor not provided by NORD DRIVESYSTEMS"]
[null,null,null,null,null,null,null,null,null,null,null,null,null,null,null,null,null,null,null,null,null,null,null,null,null,"Ex de Flameproof"]
[]
[null,null,null,null,null,null,null,null,null,null,null,null,null,null,null,null,null,null,null,null,null,null,null,null,null,"zone2t3gasinvnolist"]
[]
[null,null,null,null,null,null,null,null,null,null,null,null,null,null,null,null,null,null,null,null,null,null,null,null,null,"Motor not provided by NORD DRIVESYSTEMS"]
[null,null,null,null,null,null,null,null,null,null,null,null,null,null,null,null,null,null,null,null,null,null,null,null,null,"Ex e Increased Safety"]
[null,null,null,null,null,null,null,null,null,null,null,null,null,null,null,null,null,null,null,null,null,null,null,null,null,"Ex de Flameproof"]
[]
[]
[null,null,null,null,null,null,null,null,null,null,null,null,null,null,null,null,null,null,null,null,null,null,null,null,null,"zone2t4gasinvnolist"]
[]
[null,null,null,null,null,null,null,null,null,null,null,null,null,null,null,null,null,null,null,null,null,null,null,null,null,"Motor not provided by NORD DRIVESYSTEMS"]
[null,null,null,null,null,null,null,null,null,null,null,null,null,null,null,null,null,null,null,null,null,null,null,null,null,"Ex de Flameproof"]
[]
[null,null,null,null,null,null,null,null,null,null,null,null,null,null,null,null,null,null,null,null,null,null,null,null,null,"zone1t3gasinvyeslist"]
[]
[null,null,null,null,null,null,null,null,null,null,null,null,null,null,null,null,null,null,null,null,null,null,null,null,null,"Motor not provided by NORD DRIVESYSTEMS"]
[null,null,null,null,null,null,null,null,null,null,null,null,null,null,null,null,null,null,null,null,null,null,null,null,null,"Ex de Flameproof"]
[]
[null,null,null,null,null,null,null,null,null,null,null,null,null,null,null,null,null,null,null,null,null,null,null,null,null,"zone1t4gasinvyeslist"]
[]
[null,null,null,null,null,null,null,null,null,null,null,null,null,null,null,null,null,null,null,null,null,null,null,null,null,"Motor not provided by NORD DRIVESYSTEMS"]
[null,null,null,null,null,null,null,null,null,null,null,null,null,null,null,null,null,null,null,null,null,null,null,null,null,"Ex de Flameproof"]
[]
[null,null,null,null,null,null,null,null,null,null,null,null,null,null,null,null,null,null,null,null,null,null,null,null,null,"zone2t3gasinvyeslist"]
[]
[null,null,null,null,null,null,null,null,null,null,null,null,null,null,null,null,null,null,null,null,null,null,null,null,null,"Motor not provided by NORD DRIVESYSTEMS"]
[null,null,null,null,null,null,null,null,null,null,null,null,null,null,null,null,null,null,null,null,null,null,null,null,null,"Ex de Flameproof"]
[]
[]
[null,null,null,null,null,null,null,null,null,null,null,null,null,null,null,null,null,null,null,null,null,null,null,null,null,"zone2t4gasinvyeslist"]
[]
[null,null,null,null,null,null,null,null,null,null,null,null,null,null,null,null,null,null,null,null,null,null,null,null,null,"Motor not provided by NORD DRIVESYSTEMS"]
[null,null,null,null,null,null,null,null,null,null,null,null,null,null,null,null,null,null,null,null,null,null,null,null,null,"Ex de Flameproof"]
[]
[null,null,null,null,null,null,null,null,null,null,null,null,null,null,null,null,null,null,null,null,null,null,null,null,null,"ganddlist"]
[]
[null,null,null,null,null,null,null,null,null,null,null,null,null,null,null,null,null,null,null,null,null,null,null,null,null,"Motor not provided by NORD DRIVESYSTEMS"]
[null,null,null,null,null,null,null,null,null,null,null,null,null,null,null,null,null,null,null,null,null,null,null,null,null,"Motor to be determined by NORD DRIVESYSTEMS"]
[]
[null,null,null,null,null,null,null,null,null,null,null,null,null,null,null,null,null,null,null,null,null,null,null,null,null,"inverterlist","inverterlookup"]
[]
[null,null,null,null,null,null,null,null,null,null,null,null,null,null,null,null,null,null,null,null,null,null,null,null,null,"No Inverter - Direct over the Line Operation","invno"]
[null,null,null,null,null,null,null,null,null,null,null,null,null,null,null,null,null,null,null,null,null,null,null,null,null,"Inverter Operation Required","invyes"]
[]
[null,null,null,null,null,null,null,null,null,null,null,null,null,null,null,null,null,null,null,null,null,null,null,null,null,"Mounting Position"]
[]
[null,null,null,null,null,null,null,null,null,null,null,null,null,null,null,null,null,null,null,null,null,null,null,null,null,"M1"]
[null,null,null,null,null,null,null,null,null,null,null,null,null,null,null,null,null,null,null,null,null,null,null,null,null,"M2"]
[null,null,null,null,null,null,null,null,null,null,null,null,null,null,null,null,null,null,null,null,null,null,null,null,null,"M3"]
[null,null,null,null,null,null,null,null,null,null,null,null,null,null,null,null,null,null,null,null,null,null,null,null,null,"M4"]
[null,null,null,null,null,null,null,null,null,null,null,null,null,null,null,null,null,null,null,null,null,null,null,null,null,"M5"]
[null,null,null,null,null,null,null,null,null,null,null,null,null,null,null,null,null,null,null,null,null,null,null,null,null,"M6"]
[null,null,null,null,null,null,null,null,null,null,null,null,null,null,null,null,null,null,null,null,null,null,null,null,null,"Other - Specify in notes area"]
[]
[null,null,null,null,null,null,null,null,null,null,null,null,null,null,null,null,null,null,null,null,null,null,null,null,null,"frequency","freqlookup"]
[]
[null,null,null,null,null,null,null,null,null,null,null,null,null,null,null,null,null,null,null,null,null,null,null,null,null,50,"voltage50"]
[null,null,null,null,null,null,null,null,null,null,null,null,null,null,null,null,null,null,null,null,null,null,null,null,null,60,"voltage60"]
[]
[null,null,null,null,null,null,null,null,null,null,null,null,null,null,null,null,null,null,null,null,null,null,null,null,null,"freqrange"]
[]
[null,null,null,null,null,null,null,null,null,null,null,null,null,null,null,null,null,null,null,null,null,null,null,null,null,"< 50 Hz Constant Torque and > 50 Hz Constant Power"]
[null,null,null,null,null,null,null,null,null,null,null,null,null,null,null,null,null,null,null,null,null,null,null,null,null,"87 Hz Curve < 87 Hz Constant Torque"]
[null,null,null,null,null,null,null,null,null,null,null,null,null,null,null,null,null,null,null,null,null,null,null,null,null,"100 Hz Curve < 100 Hz Constant Torque"]
[]
[null,null,null,null,null,null,null,null,null,null,null,null,null,null,null,null,null,null,null,null,null,null,null,null,null,"duty"]
[]
[null,null,null,null,null,null,null,null,null,null,null,null,null,null,null,null,null,null,null,null,null,null,null,null,null,"S1 - Continuous Operation"]
[null,null,null,null,null,null,null,null,null,null,null,null,null,null,null,null,null,null,null,null,null,null,null,null,null,"S2 - Short Term Operation - 5min"]
[null,null,null,null,null,null,null,null,null,null,null,null,null,null,null,null,null,null,null,null,null,null,null,null,null,"S2 - Short Term Operation - 10min"]
[null,null,null,null,null,null,null,null,null,null,null,null,null,null,null,null,null,null,null,null,null,null,null,null,null,"S2 - Short Term Operation - 30min"]
[null,null,null,null,null,null,null,null,null,null,null,null,null,null,null,null,null,null,null,null,null,null,null,null,null,"S3 - Intermittent Operation - 20%"]
[null,null,null,null,null,null,null,null,null,null,null,null,null,null,null,null,null,null,null,null,null,null,null,null,null,"S3 - Intermittent Operation - 40%"]
[null,null,null,null,null,null,null,null,null,null,null,null,null,null,null,null,null,null,null,null,null,null,null,null,null,"S3 - Intermittent Operation - 60%"]
[null,null,null,null,null,null,null,null,null,null,null,null,null,null,null,null,null,null,null,null,null,null,null,null,null,"S3 - Intermittent Operation - 80%"]
[null,null,null,null,null,null,null,null,null,null,null,null,null,null,null,null,null,null,null,null,null,null,null,null,null,"S4 - Intermittent Operation with Starting"]
[null,null,null,null,null,null,null,null,null,null,null,null,null,null,null,null,null,null,null,null,null,null,null,null,null,"S6 - Continuous Operation with Intermittent Load - 20%"]
[null,null,null,null,null,null,null,null,null,null,null,null,null,null,null,null,null,null,null,null,null,null,null,null,null,"S6 - Continuous Operation with Intermittent Load - 40%"]
[null,null,null,null,null,null,null,null,null,null,null,null,null,null,null,null,null,null,null,null,null,null,null,null,null,"S6 - Continuous Operation with Intermittent Load - 60%"]
[null,null,null,null,null,null,null,null,null,null,null,null,null,null,null,null,null,null,null,null,null,null,null,null,null,"S6 - Continuous Operation with Intermittent Load - 80%"]
[null,null,null,null,null,null,null,null,null,null,null,null,null,null,null,null,null,null,null,null,null,null,null,null,null,"S9 - Continuous Operation with Load & Speed Changes"]
[]
[]
[null,null,null,null,null,null,null,null,null,null,null,null,null,null,null,null,null,null,null,null,null,null,null,null,null,"measure"]
[]
[null,null,null,null,null,null,null,null,null,null,null,null,null,null,null,null,null,null,null,null,null,null,null,null,null,"Metric"]
[null,null,null,null,null,null,null,null,null,null,null,null,null,null,null,null,null,null,null,null,null,null,null,null,null,"Imperial"]
[]
[null,null,null,null,null,null,null,null,null,null,null,null,null,null,null,null,null,null,null,null,null,null,null,null,null,"voltage50list"]
[]
[null,null,null,null,null,null,null,null,null,null,null,null,null,null,null,null,null,null,null,null,null,null,null,null,null,"230/400"]
[null,null,null,null,null,null,null,null,null,null,null,null,null,null,null,null,null,null,null,null,null,null,null,null,null,"400/690"]
[null,null,null,null,null,null,null,null,null,null,null,null,null,null,null,null,null,null,null,null,null,null,null,null,null,230]
[null,null,null,null,null,null,null,null,null,null,null,null,null,null,null,null,null,null,null,null,null,null,null,null,null,400]
[null,null,null,null,null,null,null,null,null,null,null,null,null,null,null,null,null,null,null,null,null,null,null,null,null,"special (specify in notes)"]
[]
[]
[null,null,null,null,null,null,null,null,null,null,null,null,null,null,null,null,null,null,null,null,null,null,null,null,null,"voltage60list"]
[]
[null,null,null,null,null,null,null,null,null,null,null,null,null,null,null,null,null,null,null,null,null,null,null,null,null,"265/460"]
[null,null,null,null,null,null,null,null,null,null,null,null,null,null,null,null,null,null,null,null,null,null,null,null,null,"460D"]
[null,null,null,null,null,null,null,null,null,null,null,null,null,null,null,null,null,null,null,null,null,null,null,null,null,575]
[null,null,null,null,null,null,null,null,null,null,null,null,null,null,null,null,null,null,null,null,null,null,null,null,null,265]
[null,null,null,null,null,null,null,null,null,null,null,null,null,null,null,null,null,null,null,null,null,null,null,null,null,460]
[null,null,null,null,null,null,null,null,null,null,null,null,null,null,null,null,null,null,null,null,null,null,null,null,null,"special (specify in notes)"]
[]
[null,null,null,null,null,null,null,null,null,null,null,null,null,null,null,null,null,null,null,null,null,null,null,null,null,"motor poles"]
[]
[null,null,null,null,null,null,null,null,null,null,null,null,null,null,null,null,null,null,null,null,null,null,null,null,null,4]
[null,null,null,null,null,null,null,null,null,null,null,null,null,null,null,null,null,null,null,null,null,null,null,null,null,2]
[null,null,null,null,null,null,null,null,null,null,null,null,null,null,null,null,null,null,null,null,null,null,null,null,null,6]
[null,null,null,null,null,null,null,null,null,null,null,null,null,null,null,null,null,null,null,null,null,null,null,null,null,8]
[null,null,null,null,null,null,null,null,null,null,null,null,null,null,null,null,null,null,null,null,null,null,null,null,null,"4-2"]
[null,null,null,null,null,null,null,null,null,null,null,null,null,null,null,null,null,null,null,null,null,null,null,null,null,"8-4"]
[]
[null,null,null,null,null,null,null,null,null,null,null,null,null,null,null,null,null,null,null,null,null,null,null,null,null,"input_design"]
[]
[null,null,null,null,null,null,null,null,null,null,null,null,null,null,null,null,null,null,null,null,null,null,null,null,null,"IEC Motor Adapter"]
[null,null,null,null,null,null,null,null,null,null,null,null,null,null,null,null,null,null,null,null,null,null,null,null,null,"IEC Motor Adapter with IEC Motor"]
[null,null,null,null,null,null,null,null,null,null,null,null,null,null,null,null,null,null,null,null,null,null,null,null,null,"Integral Motor"]
[null,null,null,null,null,null,null,null,null,null,null,null,null,null,null,null,null,null,null,null,null,null,null,null,null,"Solid Input Shaft"]
[null,null,null,null,null,null,null,null,null,null,null,null,null,null,null,null,null,null,null,null,null,null,null,null,null,"NEMA Motor Adapter"]
[null,null,null,null,null,null,null,null,null,null,null,null,null,null,null,null,null,null,null,null,null,null,null,null,null,"Servo Motor Adapter"]
[]
[null,null,null,null,null,null,null,null,null,null,null,null,null,null,null,null,null,null,null,null,null,null,null,null,null,"flameproof input_design"]
[]
[null,null,null,null,null,null,null,null,null,null,null,null,null,null,null,null,null,null,null,null,null,null,null,null,null,"IEC Motor Adapter with IEC Motor"]
[]
[null,null,null,null,null,null,null,null,null,null,null,null,null,null,null,null,null,null,null,null,null,null,null,null,null,"nomotor input design"]
[]
[null,null,null,null,null,null,null,null,null,null,null,null,null,null,null,null,null,null,null,null,null,null,null,null,null,"IEC Motor Adapter"]
[null,null,null,null,null,null,null,null,null,null,null,null,null,null,null,null,null,null,null,null,null,null,null,null,null,"Solid Input Shaft"]
[null,null,null,null,null,null,null,null,null,null,null,null,null,null,null,null,null,null,null,null,null,null,null,null,null,"NEMA Motor Adapter"]
[null,null,null,null,null,null,null,null,null,null,null,null,null,null,null,null,null,null,null,null,null,null,null,null,null,"Servo Motor Adapter"]
[]
[null,null,null,null,null,null,null,null,null,null,null,null,null,null,null,null,null,null,null,null,null,null,null,null,null,"efficiency"]
[]
[null,null,null,null,null,null,null,null,null,null,null,null,null,null,null,null,null,null,null,null,null,null,null,null,null,"IE1 - Normal Efficiency"]
[null,null,null,null,null,null,null,null,null,null,null,null,null,null,null,null,null,null,null,null,null,null,null,null,null,"IE2 - Energy Efficient (EPACT)"]
[null,null,null,null,null,null,null,null,null,null,null,null,null,null,null,null,null,null,null,null,null,null,null,null,null,"IE3 - Premium Efficieny (not required for ATEX)"]
[]
[null,null,null,null,null,null,null,null,null,null,null,null,null,null,null,null,null,null,null,null,null,null,null,null,null,"country"]
[]
[null,null,null,null,null,null,null,null,null,null,null,null,null,null,null,null,null,null,null,null,null,null,null,null,null,"Afghanistan "]
[null,null,null,null,null,null,null,null,null,null,null,null,null,null,null,null,null,null,null,null,null,null,null,null,null,"Albania "]
[null,null,null,null,null,null,null,null,null,null,null,null,null,null,null,null,null,null,null,null,null,null,null,null,null,"Algeria "]
[null,null,null,null,null,null,null,null,null,null,null,null,null,null,null,null,null,null,null,null,null,null,null,null,null,"American Samoa "]
[null,null,null,null,null,null,null,null,null,null,null,null,null,null,null,null,null,null,null,null,null,null,null,null,null,"Andorra "]
[null,null,null,null,null,null,null,null,null,null,null,null,null,null,null,null,null,null,null,null,null,null,null,null,null,"Angola "]
[null,null,null,null,null,null,null,null,null,null,null,null,null,null,null,null,null,null,null,null,null,null,null,null,null,"Anguilla "]
[null,null,null,null,null,null,null,null,null,null,null,null,null,null,null,null,null,null,null,null,null,null,null,null,null,"Antigua & Barbuda "]
[null,null,null,null,null,null,null,null,null,null,null,null,null,null,null,null,null,null,null,null,null,null,null,null,null,"Argentina "]
[null,null,null,null,null,null,null,null,null,null,null,null,null,null,null,null,null,null,null,null,null,null,null,null,null,"Armenia "]
[null,null,null,null,null,null,null,null,null,null,null,null,null,null,null,null,null,null,null,null,null,null,null,null,null,"Aruba "]
[null,null,null,null,null,null,null,null,null,null,null,null,null,null,null,null,null,null,null,null,null,null,null,null,null,"Australia "]
[null,null,null,null,null,null,null,null,null,null,null,null,null,null,null,null,null,null,null,null,null,null,null,null,null,"Austria "]
[null,null,null,null,null,null,null,null,null,null,null,null,null,null,null,null,null,null,null,null,null,null,null,null,null,"Azerbaijan "]
[null,null,null,null,null,null,null,null,null,null,null,null,null,null,null,null,null,null,null,null,null,null,null,null,null,"Bahamas, The "]
[null,null,null,null,null,null,null,null,null,null,null,null,null,null,null,null,null,null,null,null,null,null,null,null,null,"Bahrain "]
[null,null,null,null,null,null,null,null,null,null,null,null,null,null,null,null,null,null,null,null,null,null,null,null,null,"Bangladesh "]
[null,null,null,null,null,null,null,null,null,null,null,null,null,null,null,null,null,null,null,null,null,null,null,null,null,"Barbados "]
[null,null,null,null,null,null,null,null,null,null,null,null,null,null,null,null,null,null,null,null,null,null,null,null,null,"Belarus "]
[null,null,null,null,null,null,null,null,null,null,null,null,null,null,null,null,null,null,null,null,null,null,null,null,null,"Belgium "]
[null,null,null,null,null,null,null,null,null,null,null,null,null,null,null,null,null,null,null,null,null,null,null,null,null,"Belize "]
[null,null,null,null,null,null,null,null,null,null,null,null,null,null,null,null,null,null,null,null,null,null,null,null,null,"Benin "]
[null,null,null,null,null,null,null,null,null,null,null,null,null,null,null,null,null,null,null,null,null,null,null,null,null,"Bermuda "]
[null,null,null,null,null,null,null,null,null,null,null,null,null,null,null,null,null,null,null,null,null,null,null,null,null,"Bhutan "]
[null,null,null,null,null,null,null,null,null,null,null,null,null,null,null,null,null,null,null,null,null,null,null,null,null,"Bolivia "]
[null,null,null,null,null,null,null,null,null,null,null,null,null,null,null,null,null,null,null,null,null,null,null,null,null,"Bosnia & Herzegovina "]
[null,null,null,null,null,null,null,null,null,null,null,null,null,null,null,null,null,null,null,null,null,null,null,null,null,"Botswana "]
[null,null,null,null,null,null,null,null,null,null,null,null,null,null,null,null,null,null,null,null,null,null,null,null,null,"Brazil "]
[null,null,null,null,null,null,null,null,null,null,null,null,null,null,null,null,null,null,null,null,null,null,null,null,null,"British Virgin Is. "]
[null,null,null,null,null,null,null,null,null,null,null,null,null,null,null,null,null,null,null,null,null,null,null,null,null,"Brunei "]
[null,null,null,null,null,null,null,null,null,null,null,null,null,null,null,null,null,null,null,null,null,null,null,null,null,"Bulgaria "]
[null,null,null,null,null,null,null,null,null,null,null,null,null,null,null,null,null,null,null,null,null,null,null,null,null,"Burkina Faso "]
[null,null,null,null,null,null,null,null,null,null,null,null,null,null,null,null,null,null,null,null,null,null,null,null,null,"Burma "]
[null,null,null,null,null,null,null,null,null,null,null,null,null,null,null,null,null,null,null,null,null,null,null,null,null,"Burundi "]
[null,null,null,null,null,null,null,null,null,null,null,null,null,null,null,null,null,null,null,null,null,null,null,null,null,"Cambodia "]
[null,null,null,null,null,null,null,null,null,null,null,null,null,null,null,null,null,null,null,null,null,null,null,null,null,"Cameroon "]
[null,null,null,null,null,null,null,null,null,null,null,null,null,null,null,null,null,null,null,null,null,null,null,null,null,"Canada "]
[null,null,null,null,null,null,null,null,null,null,null,null,null,null,null,null,null,null,null,null,null,null,null,null,null,"Cape Verde "]
[null,null,null,null,null,null,null,null,null,null,null,null,null,null,null,null,null,null,null,null,null,null,null,null,null,"Cayman Islands "]
[null,null,null,null,null,null,null,null,null,null,null,null,null,null,null,null,null,null,null,null,null,null,null,null,null,"Central African Rep. "]
[null,null,null,null,null,null,null,null,null,null,null,null,null,null,null,null,null,null,null,null,null,null,null,null,null,"Chad "]
[null,null,null,null,null,null,null,null,null,null,null,null,null,null,null,null,null,null,null,null,null,null,null,null,null,"Chile "]
[null,null,null,null,null,null,null,null,null,null,null,null,null,null,null,null,null,null,null,null,null,null,null,null,null,"China "]
[null,null,null,null,null,null,null,null,null,null,null,null,null,null,null,null,null,null,null,null,null,null,null,null,null,"Colombia "]
[null,null,null,null,null,null,null,null,null,null,null,null,null,null,null,null,null,null,null,null,null,null,null,null,null,"Comoros "]
[null,null,null,null,null,null,null,null,null,null,null,null,null,null,null,null,null,null,null,null,null,null,null,null,null,"Congo, Dem. Rep. "]
[null,null,null,null,null,null,null,null,null,null,null,null,null,null,null,null,null,null,null,null,null,null,null,null,null,"Congo, Repub. of the "]
[null,null,null,null,null,null,null,null,null,null,null,null,null,null,null,null,null,null,null,null,null,null,null,null,null,"Cook Islands "]
[null,null,null,null,null,null,null,null,null,null,null,null,null,null,null,null,null,null,null,null,null,null,null,null,null,"Costa Rica "]
[null,null,null,null,null,null,null,null,null,null,null,null,null,null,null,null,null,null,null,null,null,null,null,null,null,"Cote d'Ivoire "]
[null,null,null,null,null,null,null,null,null,null,null,null,null,null,null,null,null,null,null,null,null,null,null,null,null,"Croatia "]
[null,null,null,null,null,null,null,null,null,null,null,null,null,null,null,null,null,null,null,null,null,null,null,null,null,"Cuba "]
[null,null,null,null,null,null,null,null,null,null,null,null,null,null,null,null,null,null,null,null,null,null,null,null,null,"Cyprus "]
[null,null,null,null,null,null,null,null,null,null,null,null,null,null,null,null,null,null,null,null,null,null,null,null,null,"Czech Republic "]
[null,null,null,null,null,null,null,null,null,null,null,null,null,null,null,null,null,null,null,null,null,null,null,null,null,"Denmark "]
[null,null,null,null,null,null,null,null,null,null,null,null,null,null,null,null,null,null,null,null,null,null,null,null,null,"Djibouti "]
[null,null,null,null,null,null,null,null,null,null,null,null,null,null,null,null,null,null,null,null,null,null,null,null,null,"Dominica "]
[null,null,null,null,null,null,null,null,null,null,null,null,null,null,null,null,null,null,null,null,null,null,null,null,null,"Dominican Republic "]
[null,null,null,null,null,null,null,null,null,null,null,null,null,null,null,null,null,null,null,null,null,null,null,null,null,"East Timor "]
[null,null,null,null,null,null,null,null,null,null,null,null,null,null,null,null,null,null,null,null,null,null,null,null,null,"Ecuador "]
[null,null,null,null,null,null,null,null,null,null,null,null,null,null,null,null,null,null,null,null,null,null,null,null,null,"Egypt "]
[null,null,null,null,null,null,null,null,null,null,null,null,null,null,null,null,null,null,null,null,null,null,null,null,null,"El Salvador "]
[null,null,null,null,null,null,null,null,null,null,null,null,null,null,null,null,null,null,null,null,null,null,null,null,null,"Equatorial Guinea "]
[null,null,null,null,null,null,null,null,null,null,null,null,null,null,null,null,null,null,null,null,null,null,null,null,null,"Eritrea "]
[null,null,null,null,null,null,null,null,null,null,null,null,null,null,null,null,null,null,null,null,null,null,null,null,null,"Estonia "]
[null,null,null,null,null,null,null,null,null,null,null,null,null,null,null,null,null,null,null,null,null,null,null,null,null,"Ethiopia "]
[null,null,null,null,null,null,null,null,null,null,null,null,null,null,null,null,null,null,null,null,null,null,null,null,null,"Faroe Islands "]
[null,null,null,null,null,null,null,null,null,null,null,null,null,null,null,null,null,null,null,null,null,null,null,null,null,"Fiji "]
[null,null,null,null,null,null,null,null,null,null,null,null,null,null,null,null,null,null,null,null,null,null,null,null,null,"Finland "]
[null,null,null,null,null,null,null,null,null,null,null,null,null,null,null,null,null,null,null,null,null,null,null,null,null,"France "]
[null,null,null,null,null,null,null,null,null,null,null,null,null,null,null,null,null,null,null,null,null,null,null,null,null,"French Guiana "]
[null,null,null,null,null,null,null,null,null,null,null,null,null,null,null,null,null,null,null,null,null,null,null,null,null,"French Polynesia "]
[null,null,null,null,null,null,null,null,null,null,null,null,null,null,null,null,null,null,null,null,null,null,null,null,null,"Gabon "]
[null,null,null,null,null,null,null,null,null,null,null,null,null,null,null,null,null,null,null,null,null,null,null,null,null,"Gambia, The "]
[null,null,null,null,null,null,null,null,null,null,null,null,null,null,null,null,null,null,null,null,null,null,null,null,null,"Gaza Strip "]
[null,null,null,null,null,null,null,null,null,null,null,null,null,null,null,null,null,null,null,null,null,null,null,null,null,"Georgia "]
[null,null,null,null,null,null,null,null,null,null,null,null,null,null,null,null,null,null,null,null,null,null,null,null,null,"Germany "]
[null,null,null,null,null,null,null,null,null,null,null,null,null,null,null,null,null,null,null,null,null,null,null,null,null,"Ghana "]
[null,null,null,null,null,null,null,null,null,null,null,null,null,null,null,null,null,null,null,null,null,null,null,null,null,"Gibraltar "]
[null,null,null,null,null,null,null,null,null,null,null,null,null,null,null,null,null,null,null,null,null,null,null,null,null,"Greece "]
[null,null,null,null,null,null,null,null,null,null,null,null,null,null,null,null,null,null,null,null,null,null,null,null,null,"Greenland "]
[null,null,null,null,null,null,null,null,null,null,null,null,null,null,null,null,null,null,null,null,null,null,null,null,null,"Grenada "]
[null,null,null,null,null,null,null,null,null,null,null,null,null,null,null,null,null,null,null,null,null,null,null,null,null,"Guadeloupe "]
[null,null,null,null,null,null,null,null,null,null,null,null,null,null,null,null,null,null,null,null,null,null,null,null,null,"Guam "]
[null,null,null,null,null,null,null,null,null,null,null,null,null,null,null,null,null,null,null,null,null,null,null,null,null,"Guatemala "]
[null,null,null,null,null,null,null,null,null,null,null,null,null,null,null,null,null,null,null,null,null,null,null,null,null,"Guernsey "]
[null,null,null,null,null,null,null,null,null,null,null,null,null,null,null,null,null,null,null,null,null,null,null,null,null,"Guinea "]
[null,null,null,null,null,null,null,null,null,null,null,null,null,null,null,null,null,null,null,null,null,null,null,null,null,"Guinea-Bissau "]
[null,null,null,null,null,null,null,null,null,null,null,null,null,null,null,null,null,null,null,null,null,null,null,null,null,"Guyana "]
[null,null,null,null,null,null,null,null,null,null,null,null,null,null,null,null,null,null,null,null,null,null,null,null,null,"Haiti "]
[null,null,null,null,null,null,null,null,null,null,null,null,null,null,null,null,null,null,null,null,null,null,null,null,null,"Honduras "]
[null,null,null,null,null,null,null,null,null,null,null,null,null,null,null,null,null,null,null,null,null,null,null,null,null,"Hong Kong "]
[null,null,null,null,null,null,null,null,null,null,null,null,null,null,null,null,null,null,null,null,null,null,null,null,null,"Hungary "]
[null,null,null,null,null,null,null,null,null,null,null,null,null,null,null,null,null,null,null,null,null,null,null,null,null,"Iceland "]
[null,null,null,null,null,null,null,null,null,null,null,null,null,null,null,null,null,null,null,null,null,null,null,null,null,"India "]
[null,null,null,null,null,null,null,null,null,null,null,null,null,null,null,null,null,null,null,null,null,null,null,null,null,"Indonesia "]
[null,null,null,null,null,null,null,null,null,null,null,null,null,null,null,null,null,null,null,null,null,null,null,null,null,"Iran "]
[null,null,null,null,null,null,null,null,null,null,null,null,null,null,null,null,null,null,null,null,null,null,null,null,null,"Iraq "]
[null,null,null,null,null,null,null,null,null,null,null,null,null,null,null,null,null,null,null,null,null,null,null,null,null,"Ireland "]
[null,null,null,null,null,null,null,null,null,null,null,null,null,null,null,null,null,null,null,null,null,null,null,null,null,"Isle of Man "]
[null,null,null,null,null,null,null,null,null,null,null,null,null,null,null,null,null,null,null,null,null,null,null,null,null,"Israel "]
[null,null,null,null,null,null,null,null,null,null,null,null,null,null,null,null,null,null,null,null,null,null,null,null,null,"Italy "]
[null,null,null,null,null,null,null,null,null,null,null,null,null,null,null,null,null,null,null,null,null,null,null,null,null,"Jamaica "]
[null,null,null,null,null,null,null,null,null,null,null,null,null,null,null,null,null,null,null,null,null,null,null,null,null,"Japan "]
[null,null,null,null,null,null,null,null,null,null,null,null,null,null,null,null,null,null,null,null,null,null,null,null,null,"Jersey "]
[null,null,null,null,null,null,null,null,null,null,null,null,null,null,null,null,null,null,null,null,null,null,null,null,null,"Jordan "]
[null,null,null,null,null,null,null,null,null,null,null,null,null,null,null,null,null,null,null,null,null,null,null,null,null,"Kazakhstan "]
[null,null,null,null,null,null,null,null,null,null,null,null,null,null,null,null,null,null,null,null,null,null,null,null,null,"Kenya "]
[null,null,null,null,null,null,null,null,null,null,null,null,null,null,null,null,null,null,null,null,null,null,null,null,null,"Kiribati "]
[null,null,null,null,null,null,null,null,null,null,null,null,null,null,null,null,null,null,null,null,null,null,null,null,null,"Korea, North "]
[null,null,null,null,null,null,null,null,null,null,null,null,null,null,null,null,null,null,null,null,null,null,null,null,null,"Korea, South "]
[null,null,null,null,null,null,null,null,null,null,null,null,null,null,null,null,null,null,null,null,null,null,null,null,null,"Kuwait "]
[null,null,null,null,null,null,null,null,null,null,null,null,null,null,null,null,null,null,null,null,null,null,null,null,null,"Kyrgyzstan "]
[null,null,null,null,null,null,null,null,null,null,null,null,null,null,null,null,null,null,null,null,null,null,null,null,null,"Laos "]
[null,null,null,null,null,null,null,null,null,null,null,null,null,null,null,null,null,null,null,null,null,null,null,null,null,"Latvia "]
[null,null,null,null,null,null,null,null,null,null,null,null,null,null,null,null,null,null,null,null,null,null,null,null,null,"Lebanon "]
[null,null,null,null,null,null,null,null,null,null,null,null,null,null,null,null,null,null,null,null,null,null,null,null,null,"Lesotho "]
[null,null,null,null,null,null,null,null,null,null,null,null,null,null,null,null,null,null,null,null,null,null,null,null,null,"Liberia "]
[null,null,null,null,null,null,null,null,null,null,null,null,null,null,null,null,null,null,null,null,null,null,null,null,null,"Libya "]
[null,null,null,null,null,null,null,null,null,null,null,null,null,null,null,null,null,null,null,null,null,null,null,null,null,"Liechtenstein "]
[null,null,null,null,null,null,null,null,null,null,null,null,null,null,null,null,null,null,null,null,null,null,null,null,null,"Lithuania "]
[null,null,null,null,null,null,null,null,null,null,null,null,null,null,null,null,null,null,null,null,null,null,null,null,null,"Luxembourg "]
[null,null,null,null,null,null,null,null,null,null,null,null,null,null,null,null,null,null,null,null,null,null,null,null,null,"Macau "]
[null,null,null,null,null,null,null,null,null,null,null,null,null,null,null,null,null,null,null,null,null,null,null,null,null,"Macedonia "]
[null,null,null,null,null,null,null,null,null,null,null,null,null,null,null,null,null,null,null,null,null,null,null,null,null,"Madagascar "]
[null,null,null,null,null,null,null,null,null,null,null,null,null,null,null,null,null,null,null,null,null,null,null,null,null,"Malawi "]
[null,null,null,null,null,null,null,null,null,null,null,null,null,null,null,null,null,null,null,null,null,null,null,null,null,"Malaysia "]
[null,null,null,null,null,null,null,null,null,null,null,null,null,null,null,null,null,null,null,null,null,null,null,null,null,"Maldives "]
[null,null,null,null,null,null,null,null,null,null,null,null,null,null,null,null,null,null,null,null,null,null,null,null,null,"Mali "]
[null,null,null,null,null,null,null,null,null,null,null,null,null,null,null,null,null,null,null,null,null,null,null,null,null,"Malta "]
[null,null,null,null,null,null,null,null,null,null,null,null,null,null,null,null,null,null,null,null,null,null,null,null,null,"Marshall Islands "]
[null,null,null,null,null,null,null,null,null,null,null,null,null,null,null,null,null,null,null,null,null,null,null,null,null,"Martinique "]
[null,null,null,null,null,null,null,null,null,null,null,null,null,null,null,null,null,null,null,null,null,null,null,null,null,"Mauritania "]
[null,null,null,null,null,null,null,null,null,null,null,null,null,null,null,null,null,null,null,null,null,null,null,null,null,"Mauritius "]
[null,null,null,null,null,null,null,null,null,null,null,null,null,null,null,null,null,null,null,null,null,null,null,null,null,"Mayotte "]
[null,null,null,null,null,null,null,null,null,null,null,null,null,null,null,null,null,null,null,null,null,null,null,null,null,"Mexico "]
[null,null,null,null,null,null,null,null,null,null,null,null,null,null,null,null,null,null,null,null,null,null,null,null,null,"Micronesia, Fed. St. "]
[null,null,null,null,null,null,null,null,null,null,null,null,null,null,null,null,null,null,null,null,null,null,null,null,null,"Moldova "]
[null,null,null,null,null,null,null,null,null,null,null,null,null,null,null,null,null,null,null,null,null,null,null,null,null,"Monaco "]
[null,null,null,null,null,null,null,null,null,null,null,null,null,null,null,null,null,null,null,null,null,null,null,null,null,"Mongolia "]
[null,null,null,null,null,null,null,null,null,null,null,null,null,null,null,null,null,null,null,null,null,null,null,null,null,"Montserrat "]
[null,null,null,null,null,null,null,null,null,null,null,null,null,null,null,null,null,null,null,null,null,null,null,null,null,"Morocco "]
[null,null,null,null,null,null,null,null,null,null,null,null,null,null,null,null,null,null,null,null,null,null,null,null,null,"Mozambique "]
[null,null,null,null,null,null,null,null,null,null,null,null,null,null,null,null,null,null,null,null,null,null,null,null,null,"Namibia "]
[null,null,null,null,null,null,null,null,null,null,null,null,null,null,null,null,null,null,null,null,null,null,null,null,null,"Nauru "]
[null,null,null,null,null,null,null,null,null,null,null,null,null,null,null,null,null,null,null,null,null,null,null,null,null,"Nepal "]
[null,null,null,null,null,null,null,null,null,null,null,null,null,null,null,null,null,null,null,null,null,null,null,null,null,"Netherlands "]
[null,null,null,null,null,null,null,null,null,null,null,null,null,null,null,null,null,null,null,null,null,null,null,null,null,"Netherlands Antilles "]
[null,null,null,null,null,null,null,null,null,null,null,null,null,null,null,null,null,null,null,null,null,null,null,null,null,"New Caledonia "]
[null,null,null,null,null,null,null,null,null,null,null,null,null,null,null,null,null,null,null,null,null,null,null,null,null,"New Zealand "]
[null,null,null,null,null,null,null,null,null,null,null,null,null,null,null,null,null,null,null,null,null,null,null,null,null,"Nicaragua "]
[null,null,null,null,null,null,null,null,null,null,null,null,null,null,null,null,null,null,null,null,null,null,null,null,null,"Niger "]
[null,null,null,null,null,null,null,null,null,null,null,null,null,null,null,null,null,null,null,null,null,null,null,null,null,"Nigeria "]
[null,null,null,null,null,null,null,null,null,null,null,null,null,null,null,null,null,null,null,null,null,null,null,null,null,"N. Mariana Islands "]
[null,null,null,null,null,null,null,null,null,null,null,null,null,null,null,null,null,null,null,null,null,null,null,null,null,"Norway "]
[null,null,null,null,null,null,null,null,null,null,null,null,null,null,null,null,null,null,null,null,null,null,null,null,null,"Oman "]
[null,null,null,null,null,null,null,null,null,null,null,null,null,null,null,null,null,null,null,null,null,null,null,null,null,"Pakistan "]
[null,null,null,null,null,null,null,null,null,null,null,null,null,null,null,null,null,null,null,null,null,null,null,null,null,"Palau "]
[null,null,null,null,null,null,null,null,null,null,null,null,null,null,null,null,null,null,null,null,null,null,null,null,null,"Panama "]
[null,null,null,null,null,null,null,null,null,null,null,null,null,null,null,null,null,null,null,null,null,null,null,null,null,"Papua New Guinea "]
[null,null,null,null,null,null,null,null,null,null,null,null,null,null,null,null,null,null,null,null,null,null,null,null,null,"Paraguay "]
[null,null,null,null,null,null,null,null,null,null,null,null,null,null,null,null,null,null,null,null,null,null,null,null,null,"Peru "]
[null,null,null,null,null,null,null,null,null,null,null,null,null,null,null,null,null,null,null,null,null,null,null,null,null,"Philippines "]
[null,null,null,null,null,null,null,null,null,null,null,null,null,null,null,null,null,null,null,null,null,null,null,null,null,"Poland "]
[null,null,null,null,null,null,null,null,null,null,null,null,null,null,null,null,null,null,null,null,null,null,null,null,null,"Portugal "]
[null,null,null,null,null,null,null,null,null,null,null,null,null,null,null,null,null,null,null,null,null,null,null,null,null,"Puerto Rico "]
[null,null,null,null,null,null,null,null,null,null,null,null,null,null,null,null,null,null,null,null,null,null,null,null,null,"Qatar "]
[null,null,null,null,null,null,null,null,null,null,null,null,null,null,null,null,null,null,null,null,null,null,null,null,null,"Reunion "]
[null,null,null,null,null,null,null,null,null,null,null,null,null,null,null,null,null,null,null,null,null,null,null,null,null,"Romania "]
[null,null,null,null,null,null,null,null,null,null,null,null,null,null,null,null,null,null,null,null,null,null,null,null,null,"Russia "]
[null,null,null,null,null,null,null,null,null,null,null,null,null,null,null,null,null,null,null,null,null,null,null,null,null,"Rwanda "]
[null,null,null,null,null,null,null,null,null,null,null,null,null,null,null,null,null,null,null,null,null,null,null,null,null,"Saint Helena "]
[null,null,null,null,null,null,null,null,null,null,null,null,null,null,null,null,null,null,null,null,null,null,null,null,null,"Saint Kitts & Nevis "]
[null,null,null,null,null,null,null,null,null,null,null,null,null,null,null,null,null,null,null,null,null,null,null,null,null,"Saint Lucia "]
[null,null,null,null,null,null,null,null,null,null,null,null,null,null,null,null,null,null,null,null,null,null,null,null,null,"St Pierre & Miquelon "]
[null,null,null,null,null,null,null,null,null,null,null,null,null,null,null,null,null,null,null,null,null,null,null,null,null,"Saint Vincent and the Grenadines "]
[null,null,null,null,null,null,null,null,null,null,null,null,null,null,null,null,null,null,null,null,null,null,null,null,null,"Samoa "]
[null,null,null,null,null,null,null,null,null,null,null,null,null,null,null,null,null,null,null,null,null,null,null,null,null,"San Marino "]
[null,null,null,null,null,null,null,null,null,null,null,null,null,null,null,null,null,null,null,null,null,null,null,null,null,"Sao Tome & Principe "]
[null,null,null,null,null,null,null,null,null,null,null,null,null,null,null,null,null,null,null,null,null,null,null,null,null,"Saudi Arabia "]
[null,null,null,null,null,null,null,null,null,null,null,null,null,null,null,null,null,null,null,null,null,null,null,null,null,"Senegal "]
[null,null,null,null,null,null,null,null,null,null,null,null,null,null,null,null,null,null,null,null,null,null,null,null,null,"Serbia "]
[null,null,null,null,null,null,null,null,null,null,null,null,null,null,null,null,null,null,null,null,null,null,null,null,null,"Seychelles "]
[null,null,null,null,null,null,null,null,null,null,null,null,null,null,null,null,null,null,null,null,null,null,null,null,null,"Sierra Leone "]
[null,null,null,null,null,null,null,null,null,null,null,null,null,null,null,null,null,null,null,null,null,null,null,null,null,"Singapore "]
[null,null,null,null,null,null,null,null,null,null,null,null,null,null,null,null,null,null,null,null,null,null,null,null,null,"Slovakia "]
[null,null,null,null,null,null,null,null,null,null,null,null,null,null,null,null,null,null,null,null,null,null,null,null,null,"Slovenia "]
[null,null,null,null,null,null,null,null,null,null,null,null,null,null,null,null,null,null,null,null,null,null,null,null,null,"Solomon Islands "]
[null,null,null,null,null,null,null,null,null,null,null,null,null,null,null,null,null,null,null,null,null,null,null,null,null,"Somalia "]
[null,null,null,null,null,null,null,null,null,null,null,null,null,null,null,null,null,null,null,null,null,null,null,null,null,"South Africa "]
[null,null,null,null,null,null,null,null,null,null,null,null,null,null,null,null,null,null,null,null,null,null,null,null,null,"Spain "]
[null,null,null,null,null,null,null,null,null,null,null,null,null,null,null,null,null,null,null,null,null,null,null,null,null,"Sri Lanka "]
[null,null,null,null,null,null,null,null,null,null,null,null,null,null,null,null,null,null,null,null,null,null,null,null,null,"Sudan "]
[null,null,null,null,null,null,null,null,null,null,null,null,null,null,null,null,null,null,null,null,null,null,null,null,null,"Suriname "]
[null,null,null,null,null,null,null,null,null,null,null,null,null,null,null,null,null,null,null,null,null,null,null,null,null,"Swaziland "]
[null,null,null,null,null,null,null,null,null,null,null,null,null,null,null,null,null,null,null,null,null,null,null,null,null,"Sweden "]
[null,null,null,null,null,null,null,null,null,null,null,null,null,null,null,null,null,null,null,null,null,null,null,null,null,"Switzerland "]
[null,null,null,null,null,null,null,null,null,null,null,null,null,null,null,null,null,null,null,null,null,null,null,null,null,"Syria "]
[null,null,null,null,null,null,null,null,null,null,null,null,null,null,null,null,null,null,null,null,null,null,null,null,null,"Taiwan "]
[null,null,null,null,null,null,null,null,null,null,null,null,null,null,null,null,null,null,null,null,null,null,null,null,null,"Tajikistan "]
[null,null,null,null,null,null,null,null,null,null,null,null,null,null,null,null,null,null,null,null,null,null,null,null,null,"Tanzania "]
[null,null,null,null,null,null,null,null,null,null,null,null,null,null,null,null,null,null,null,null,null,null,null,null,null,"Thailand "]
[null,null,null,null,null,null,null,null,null,null,null,null,null,null,null,null,null,null,null,null,null,null,null,null,null,"Togo "]
[null,null,null,null,null,null,null,null,null,null,null,null,null,null,null,null,null,null,null,null,null,null,null,null,null,"Tonga "]
[null,null,null,null,null,null,null,null,null,null,null,null,null,null,null,null,null,null,null,null,null,null,null,null,null,"Trinidad & Tobago "]
[null,null,null,null,null,null,null,null,null,null,null,null,null,null,null,null,null,null,null,null,null,null,null,null,null,"Tunisia "]
[null,null,null,null,null,null,null,null,null,null,null,null,null,null,null,null,null,null,null,null,null,null,null,null,null,"Turkey "]
[null,null,null,null,null,null,null,null,null,null,null,null,null,null,null,null,null,null,null,null,null,null,null,null,null,"Turkmenistan "]
[null,null,null,null,null,null,null,null,null,null,null,null,null,null,null,null,null,null,null,null,null,null,null,null,null,"Turks & Caicos Is "]
[null,null,null,null,null,null,null,null,null,null,null,null,null,null,null,null,null,null,null,null,null,null,null,null,null,"Tuvalu "]
[null,null,null,null,null,null,null,null,null,null,null,null,null,null,null,null,null,null,null,null,null,null,null,null,null,"Uganda "]
[null,null,null,null,null,null,null,null,null,null,null,null,null,null,null,null,null,null,null,null,null,null,null,null,null,"Ukraine "]
[null,null,null,null,null,null,null,null,null,null,null,null,null,null,null,null,null,null,null,null,null,null,null,null,null,"United Arab Emirates "]
[null,null,null,null,null,null,null,null,null,null,null,null,null,null,null,null,null,null,null,null,null,null,null,null,null,"United Kingdom "]
[]
[]
[]
[]
[]
[]
[]
[]
[]
[]
[]
[]
[]
[]
[]
[]
[]
[]
[]
[]
[]
[]
[]
[null,null,null,null,null,null,null,null,null,null,null,null,null,null,null,null,null,null,null,null,null,null,null,null,null,null,false]
[]
[]
[]
[]
[]
[]
[]
[]
[]
[]
[]
[]
[]
[]
[]
[]
[]
[]
[]
[]
[]
[]
[]
[]
[]
[]
[]
[]
[]
[]
[]
[]
[]
[]
[]
[]
[]
[]
[]
[]
[]
[]
[null,null,null,null,null,null,null,null,null,null,null,null,null,null,null,null,null,null,null,null,null,null,null,null,null,{"$f":"IF(H65=\"M4\",TRUE, \"\")","v":""}]
[]
[]
[null,null,null,null,null,null,null,null,null,null,null,null,null,null,null,null,null,null,null,null,null,null,null,null,null,"brake"]
[]
[null,null,null,null,null,null,null,null,null,null,null,null,null,null,null,null,null,null,null,null,null,null,null,null,null,"Brake - Dynamic/Stopping"]
[null,null,null,null,null,null,null,null,null,null,null,null,null,null,null,null,null,null,null,null,null,null,null,null,null,"Brake - Parking/Holding"]
[]
[null,null,null,null,null,null,null,null,null,null,null,null,null,null,null,null,null,null,null,null,null,null,null,null,null,"AC Brake Voltage"]
[]
[null,null,null,null,null,null,null,null,null,null,null,null,null,null,null,null,null,null,null,null,null,null,null,null,null,115]
[null,null,null,null,null,null,null,null,null,null,null,null,null,null,null,null,null,null,null,null,null,null,null,null,null,208]
[null,null,null,null,null,null,null,null,null,null,null,null,null,null,null,null,null,null,null,null,null,null,null,null,null,230]
[null,null,null,null,null,null,null,null,null,null,null,null,null,null,null,null,null,null,null,null,null,null,null,null,null,400]
[null,null,null,null,null,null,null,null,null,null,null,null,null,null,null,null,null,null,null,null,null,null,null,null,null,460]
[null,null,null,null,null,null,null,null,null,null,null,null,null,null,null,null,null,null,null,null,null,null,null,null,null,500]
[null,null,null,null,null,null,null,null,null,null,null,null,null,null,null,null,null,null,null,null,null,null,null,null,null,575]
[null,null,null,null,null,null,null,null,null,null,null,null,null,null,null,null,null,null,null,null,null,null,null,null,null,"none"]
[]
[null,null,null,null,null,null,null,null,null,null,null,null,null,null,null,null,null,null,null,null,null,null,null,null,null,"DC Brake Voltage"]
[]
[null,null,null,null,null,null,null,null,null,null,null,null,null,null,null,null,null,null,null,null,null,null,null,null,null,24]
[null,null,null,null,null,null,null,null,null,null,null,null,null,null,null,null,null,null,null,null,null,null,null,null,null,105]
[null,null,null,null,null,null,null,null,null,null,null,null,null,null,null,null,null,null,null,null,null,null,null,null,null,180]
[null,null,null,null,null,null,null,null,null,null,null,null,null,null,null,null,null,null,null,null,null,null,null,null,null,205]
[null,null,null,null,null,null,null,null,null,null,null,null,null,null,null,null,null,null,null,null,null,null,null,null,null,225]
[null,null,null,null,null,null,null,null,null,null,null,null,null,null,null,null,null,null,null,null,null,null,null,null,null,250]

{"sheet":"Sheet1","index":1,"n_rows":22,"n_cols":13,"rows_kept":22,"cut":false,"hidden":true,"merged":[]}
[]
["Select Hazardous Material","hazard_type","Select Zone",null,"Category","Select Dust Type","Select Temperature Class",null,"Select Motor Construction if known",null,"Category",null,"min_ip_class"]
["Gas","G","Zone 22","Rare Explosion Risk","III","Non-Conductive Dust","T1 > 450°C (842°F)","T1","Ex i Instrinsic Safety",{"$f":"LEFT(I3,4)","v":"Ex i"},"III","A","IP5x"]
["Dust","D","Zone 21","Occasional Explosion Risk","II","Conductive Dust","T2 > 300°C (572°F)","T2","Ex d Flameproof","Ex d","II","B","IP6x"]
["Gas & Dust",null,"Zone 20","High Degree of Explosion Risk","I",null,"T3 > 200°C (392°F)","T3","Ex m Encapsulation","Ex m","I","C","IP6x"]
[null,null,"Select Zone",null,null,null,"T4 > 135°C (275°F)","T4","Ex e Increased Safety","Ex e"]
[null,null,"Zone 2","Rare Explosion Risk","III",null,"T5 > 100°C (212°F)","T5","Ex p Pressurized","Ex p",null,null,"Service Factor > 1.0"]
[null,null,"Zone 1","Occasional Explosion Risk","II",null,"T6 > 85°C (185°F)","T6","Ex n Non-Sparking","Ex n",null,null,"Increased safey cannot be used with VFD's"]
[null,null,"Zone 0","High Degree of Explosion Risk","I"]
[null,null,"Select Zone"]
[null,null,"Zone 22 & Zone 2","Rare Explosion Risk","III"]
[null,null,"Zone 21 & Zone 1","Occasional Explosion Risk","II"]
[null,null,"Zone 20 & Zone 0","High Degree of Explosion Risk","I"]
[]
[]
[]
[]
[]
[]
[]
[]
[null,null,null,null,null,null,null,null,"non-sparking"]

{"sheet":"Sheet2","index":2,"n_rows":24,"n_cols":14,"rows_kept":24,"cut":false,"hidden":true,"merged":[]}
["Select Hazardous Material",null,"hazard_type","Select Zone",null,"Category","Select Dust Type","Select Temperature Class",null,"Select Motor Construction if known",null,"Category",null,"min_ip_class"]
["Gas","gas","G","Zone 22","Rare Explosion Risk","III","Non-Conductive Dust","T1 > 450°C (842°F)","T1","Ex i Instrinsic Safety","Ex i","III","A","IP5x"]
["Dust","dust","D","Zone 21","Occasional Explosion Risk","II","Conductive Dust","T2 > 300°C (572°F)","T2","Ex d Flameproof","Ex d","II","B","IP6x"]
["GasDust","gasdust",null,"Zone 20","High Degree of Explosion Risk","I",null,"T3 > 200°C (392°F)","T3","Ex m Encapsulation","Ex m","I","C","IP6x"]
[null,null,null,"Select Zone",null,null,null,"T4 > 130°C (266°F)","T4","Ex e Increased Safety","Ex e"]
[null,null,null,"Zone 2","Rare Explosion Risk","III",null,"T5 > 100°C (212°F)","T5","Ex p Pressurized","Ex p",null,null,"Service Factor > 1.0"]
[null,null,null,"Zone 1","Occasional Explosion Risk","II",null,"T6 > 85°C (185°F)","T6","Ex n Non-Sparking","Ex n",null,null,"Increased safey cannot be used with VFD's"]
[null,null,null,"Zone 0","High Degree of Explosion Risk","I"]
[null,null,null,"Select Zone"]
[null,null,null,"Zone 22 & Zone 2","Rare Explosion Risk","III"]
[null,null,null,"Zone 21 & Zone 1","Occasional Explosion Risk","II","T1 , 450°C (842°F)","Maximum Allowed Surface Tempertature",{"$f":"G11&\" \"&H11","v":"T1 , 450°C (842°F) Maximum Allowed Surface Tempertature"}]
[null,null,null,"Zone 20 & Zone 0","High Degree of Explosion Risk","I","T2 , 300°C (572°F)","Maximum Allowed Surface Tempertature","T2 , 300°C (572°F) Maximum Allowed Surface Tempertature"]
[null,null,null,null,null,null,"T3 , 200°C (392°F)","Maximum Allowed Surface Tempertature","T3 , 200°C (392°F) Maximum Allowed Surface Tempertature"]
[null,null,null,"Dustlist","dustlookup",null,"T4 , 130°C (266°F)","Maximum Allowed Surface Tempertature","T4 , 130°C (266°F) Maximum Allowed Surface Tempertature"]
[null,null,null,"Select Zone","Selectzone",null,"T5 , 100°C (212°F)","Maximum Allowed Surface Tempertature","T5 , 100°C (212°F) Maximum Allowed Surface Tempertature"]
[null,null,null,"Zone 22 - Rare Explosion Risk","Zone22",null,"T6 , 85°C (185°F)","Maximum Allowed Surface Tempertature","T6 , 85°C (185°F) Maximum Allowed Surface Tempertature"]
[null,null,null,"Zone 21 - Occasional Explosion Risk","Zone21",null,"T1 > 450°C (842°F)","Ignition Temperature of Gas or Vapor","T1 > 450°C (842°F) Ignition Temperature of Gas or Vapor"]
[null,null,null,"Zone 20 - High Degree of Explosion Risk","Zone20",null,"T2 > 300°C (572°F)","Ignition Temperature of Gas or Vapor","T2 > 300°C (572°F) Ignition Temperature of Gas or Vapor"]
[null,null,null,null,null,null,"T3 > 200°C (392°F)","Ignition Temperature of Gas or Vapor","T3 > 200°C (392°F) Ignition Temperature of Gas or Vapor"]
[null,null,null,"gaslist","gaslookup",null,"T4 > 130°C (266°F)","Ignition Temperature of Gas or Vapor","T4 > 130°C (266°F) Ignition Temperature of Gas or Vapor"]
[null,null,null,"Select Zone","Selectzone",null,"T5 > 100°C (212°F)","Ignition Temperature of Gas or Vapor","T5 > 100°C (212°F) Ignition Temperature of Gas or Vapor"]
[null,null,null,"Zone 2 - Rare Explosion Risk","Zone2",null,"T6 > 85°C (185°F)","Ignition Temperature of Gas or Vapor","T6 > 85°C (185°F) Ignition Temperature of Gas or Vapor"]
[null,null,null,"Zone 1 - Occasional Explosion Risk","Zone1",null,null,null,null,"non-sparking"]
[null,null,null,"Zone 0 - High Degree of Explosion Risk","Zone0"]

{"sheet":"Sheet3","index":3,"n_rows":2,"n_cols":1,"rows_kept":2,"cut":false,"hidden":true,"merged":[]}
["=IF(B2=\"dust\",INDIRECT(VLOOKUP(B3,zonelookup,2,0)&(VLOOKUP(B4,conductivelookup,2,0)&\"list\")),INDIRECT(VLOOKUP(B3,zonelookup,2,0)&(VLOOKUP(B5,gastemplookup,2,0)&(vlookup(b6,inverterlookup,2,0)&\"list\"))))"]
["'=INDIRECT(VLOOKUP(B3,zonelookup,2,0)&(VLOOKUP(B5,gastemplookup,2,0)&\"list\"))"]

{"sheet":"Sheet4","index":4,"n_rows":13,"n_cols":10,"rows_kept":13,"cut":false,"hidden":true,"merged":[[4,2,5,2],[2,2,3,2]]}
[null,null,null,null,null,null,"Description","Protection\nType","Standard","Notes"]
[null,"Zone","Hazard","Hazard Presence",null,null,"Dust Explosion Protection","tc","EN 60079-0 & -31","Zone 22"]
[null,"Zone 2","Gas","Abnormal < 10 hours per year",null,null,"Dust Explosion Protection","tb","EN 60079-0 & -31","Zone 21 or Zone 22 with Conductive Dust"]
[null,"Zone 1",null,"Occasional 10 -1000 hours per year",null,null,"Increased Safety","e","EN 60079-0 & -7"]
[null,"Zone 22","Dust","Abnormal < 10 hours per year",null,null,"Non-Sparking","n / nA","EN 60079-0 & -15"]
[null,"Zone 21",null,"Occasional 10 -1000 hours per year",null,null,"Flameproof Enclosure","d / de","EN 60079-0 & -1"]
[]
[]
[null,null,null,"Ex tb Dust Explosion Protection","Zone 21 Category 2D - with TF Inverter operation"]
[null,null,null,"Ex tc Dust Explosion Protection","Zone 22 Category 3D - with TF Inverter operation"]
[null,null,null,"Ex nA Non-Sparking","T3 Zone2 - with TF Inverter operation"]
[null,null,null,"Ex e Increased Safety","T3 Zone 1 & Zone 2 - No VFD"]
[null,null,null,"Ex de Flameproof","T4 Zone 1 & Zone 2 - with TF Inverter Operation"]

{"sheet":"duty","index":5,"n_rows":11,"n_cols":4,"rows_kept":11,"cut":false,"hidden":true,"merged":[]}
[]
[null,"S1","Continuous duty","The motor works at a constant load for enough time to reach temperature equilibrium."]
[null,"S2","Short-time duty","The motor works at a constant load, but not long enough to reach temperature equilibrium. The rest periods are long enough for the motor to reach ambient temperature."]
[null,"S3","Intermittent periodic duty","Sequential, identical run and rest cycles with constant load. Temperature equilibrium is never reached. Starting current has little effect on temperature rise."]
[null,"S4","Intermittent periodic duty with starting","Sequential, identical start, run and rest cycles with constant load. Temperature equilibrium is not reached, but starting current affects temperature rise."]
[null,"S5","Intermittent periodic duty with electric braking","Sequential, identical cycles of starting, running at constant load and running with no load. No rest periods."]
[null,"S6","Continuous operation with intermittent load","Sequential, identical cycles of running with constant load and running with no load. No rest periods."]
[null,"S7","Continuous operation with electric braking","Sequential identical cycles of starting, running at constant load and electric braking. No rest periods."]
[null,"S8","Continuous operation with periodic changes in load and speed","Sequential, identical duty cycles run at constant load and given speed, then run at other constant loads and speeds. No rest periods."]
[null,"S9","Duty with non-periodic load and speed variations","Load and speed vary periodically within the permissible operating range. Frequent overloading may occur"]
[null,"S10","Duty with discrete constant loads and speeds","Duty with discrete number of load/speed combinations, with these maintained long enough to reach thermal equilibrium."]

{"sheet":"Sheet5","index":6,"n_rows":12,"n_cols":3,"rows_kept":12,"cut":false,"hidden":true,"merged":[]}
[]
[]
[]
[]
[null,"Ex tb Dust Explosion Protection","Zone 21 Category 2D - with TF Inverter operation"]
[null,"Ex tc Dust Explosion Protection","Zone 22 Category 3D - with TF Inverter operation"]
[]
[null," Gas"]
[]
[null,"Ex nA Non-Sparking","T3 Zone2 - with TF Inverter operation"]
[null,"Ex e Increased Safety","T3 Zone 1 & Zone 2 - No VFD"]
[null,"Ex de Flameproof","T4 Zone 1 & Zone 2 - with TF Inverter Operation"]

{"sheet":"_SSC","index":7,"n_rows":8,"n_cols":5,"rows_kept":8,"cut":false,"hidden":true,"merged":[]}
[null,null,"{\"IsHide\":false,\"SheetId\":1,\"Name\":\"ATEX\",\"HiddenRow\":1,\"VisibleRange\":\"\",\"SheetTheme\":{\"TabColor\":\"\",\"BodyColor\":\"\",\"BodyImage\":\"\"}}","{\"ButtonStyle\":0,\"Name\":\"\",\"HideSscPoweredlogo\":false,\"CopyProtect\":{\"IsEnabled\":false,\"DomainName\":\"\"},\"Theme\":{\"BgColor\":\"#FFFFFFFF\",\"BgImage\":\"\",\"InputBorderStyle\":2},\"Layout\":0,\"SmartphoneSettings\":{\"ViewportLock\":true,\"UseOldViewEngine\":false,\"EnableZoom\":false,\"EnableSwipe\":false,\"HideToolbar\":false,\"CheckboxFlavor\":1},\"SmartphoneTheme\":0,\"InputDetection\":1,\"Toolbar\":{\"Position\":1,\"IsSubmit\":true,\"IsPrint\":true,\"IsPrintAll\":false,\"IsReset\":true,\"IsUpdate\":true},\"AspnetConfig\":{\"BrowseUrl\":\"http://localhost/ssc\",\"FileExtension\":0},\"ConfigureSubmit\":{\"IsShowCaptcha\":false,\"IsUseSscWebServer\":true,\"ReceiverCode\":\"thomas.koren@nord.com\",\"IsFreeService\":false,\"IsAdvanceService\":true,\"IsDemonstrationService\":false,\"AfterSuccessfulSubmit\":\"\",\"AfterFailSubmit\":\"\",\"AfterCancelWizard\":\"\",\"IsUseOwnWebServer\":false,\"OwnWebServerURL\":\"\",\"OwnWebServerTarget\":\"\",\"SubmitTarget\":0},\"Flavor\":-1,\"Edition\":0,\"IgnoreBgInputCell\":false}","{\"Captcha\":{\"Heading\":\"Enter the number displayed below.\",\"Message\":\"This is to verify that you are a human visitor, to prevent automated form submissions.\",\"OkButton\":\"OK\",\"CancelButton\":\"Cancel\",\"ErrorMessage\":\"Your answer is incorrect, please try again.\"},\"RequiredField\":{\"ErrorMessage\":\"The fields with the red border are required.\",\"OkButton\":\"OK\",\"DDLDefaultRequiredText\":\"Please Select\"},\"WizardButton\":{\"Next\":\"Next\",\"Previous\":\"Previous\",\"Cancel\":\"Cancel\",\"Finish\":\"Finish\"},\"ToolbarButton\":{\"Submit\":\"Submit\",\"Print\":\"Print\",\"PrintAll\":\"Print All\",\"Reset\":\"Reset\",\"Update\":\"Update\",\"Back\":\"Back\"},\"BrowserAndLocation\":{\"Browsers\":[],\"ConversionPath\":\"C:\\\\Users\\\\Brings\\\\Documents\\\\SpreadsheetConverter\"},\"AdvancedSettingsModels\":[],\"Dropbox\":{\"AccessToken\":\"\",\"AccessSecret\":\"\"},\"SpreadsheetServer\":{\"Username\":\"\",\"Password\":\"\",\"ServerUrl\":\"\"},\"ConfigureSubmitDefault\":{\"Email\":\"thomas.koren@nord.com\"}}"]
[null,null,"REMOVED"]
[null,null,"REMOVED"]
[null,null,"REMOVED"]
[null,null,"REMOVED"]
[null,null,"REMOVED"]
[null,null,"REMOVED"]
[null,null,"{\"IsHide\":true,\"SheetId\":8,\"Name\":\"Instructions\",\"HiddenRow\":8,\"VisibleRange\":\"\",\"SheetTheme\":{\"TabColor\":\"\",\"BodyColor\":\"\",\"BodyImage\":\"\"}}"]

{"sheet":"Sheet7","index":8,"n_rows":0,"n_cols":0,"rows_kept":0,"cut":false,"hidden":true,"merged":[]}

{"sheet":"Instructions","index":9,"n_rows":0,"n_cols":0,"rows_kept":0,"cut":false,"hidden":false,"merged":[]}